Cogmind - Beta 14 @@@ ROGUE MODE // 2024.08.17 @ 03:31:34 Player: Lillith Result: Destroyed by Piercing Trap Performance ------------- Evolutions (0) 0 Regions Visited (2) 400 Robots Destroyed (34) 170 Value Destroyed (777) 777 Prototype IDs (11) 220 Alien Tech Used (0) 0 Bonus (23) 23 TOTAL SCORE: 1590 Bonus ------- High Alert Combat Kills 23 Cogmind --------- Core Integrity 0/250 Matter 300/300 Energy 156/160 System Corruption 0% Temperature Cool (2) Movement Walking (190) Ox1 Location -10/Subcaves Parts ------- > --- POWER (1) -------- Light Nuclear Core > --- PROPULSION (2) --- Aluminum Leg Aluminum Leg > --- UTILITY (2) ------ Medium Storage Unit Structural Scanner > --- WEAPON (2) ------- Beam Cannon Hammer > --- INVENTORY (10) --- Aluminum Leg Aluminum Leg Large Matter Pod (150) Hacking Suite Hacking Suite Hacking Suite Medium Laser Light Assault Rifle Peak State ------------ > --- POWER ------------ Light Nuclear Core > --- PROPULSION ------- Aluminum Leg Aluminum Leg > --- UTILITY ---------- Medium Storage Unit Structural Scanner > --- WEAPON ----------- Beam Cannon Light Assault Rifle > --- INVENTORY -------- Ion Engine Ion Engine Aluminum Leg Aluminum Leg Small Matter Pod Large Matter Pod Medium Laser Small Laser Light Assault Rifle Grenade Launcher [Rating: 10] Favorites ----------- Power Light Nuclear Core Engine Ion Engine Power Core Light Nuclear Core Propulsion Aluminum Leg Leg Aluminum Leg Utility Structural Scanner Device Structural Scanner Storage Medium Storage Unit Weapon Beam Cannon Energy Gun Medium Laser Energy Cannon Beam Cannon Ballistic Gun Light Assault Rifle Launcher Grenade Launcher Impact Weapon Hammer Build | -11 -10 -10 ------- Run | Yrd Mat Sub Slots Evolved . | . . . Power . | . . . Propulsion . | . . . Utility . | . . . Weapon . | . . . Parts Attached 27 | 6 10 11 Power 3 | 1 2 . Engine 1 | 1 . . Core 2 | . 2 . Reactor . | . . . Propulsion 7 | 2 3 2 Treads . | . . . Leg 7 | 2 3 2 Wheel . | . . . Hover . | . . . Flight . | . . . Utility 3 | 1 2 . Device 1 | . 1 . Storage 2 | 1 1 . Processor . | . . . Hackware . | . . . Protection . | . . . Artifact . | . . . Weapon 14 | 2 3 9 Energy Gun 3 | 1 . 2 Energy Cannon 3 | . 2 1 Ballistic Gun 2 | 1 1 . Ballistic Cannon . | . . . Launcher 3 | . . 3 Special Weapon . | . . . Impact Weapon 3 | . . 3 Slashing Weapon . | . . . Piercing Weapon . | . . . Special Melee Weapon . | . . . Unidentified Prototypes . | . . . Parts Lost 4 | . 2 2 Power . | . . . Propulsion 3 | . 2 1 Utility . | . . . Weapon 1 | . . 1 Highest Loss Streak 1 | . 1 1 To Critical Strikes . | . . . Average Slot Usage (%) 99 | . 98 99 Engine 3 | . 7 . Core 10 | . 6 14 Leg 27 | . 27 27 Device 13 | . 13 14 Storage 14 | . 14 14 Energy Gun 4 | . . 7 Energy Cannon 12 | . 13 11 Ballistic Gun 6 | . 13 . Launcher 2 | . . 4 Impact Weapon 1 | . . 3 Peak Build Rating 10 | 6 10 10 Average Rating 9 | 4 8 9 On Entrance 5 | . 6 10 Naked Turns . | . . . Heaviest Build 22 | 13 20 22 Greatest Support 20 | 20 20 20 Greatest Overweight (x) 2 | 1 1 2 Average Overweight (x) . | . . . Largest Inventory Capacity 10 | 8 10 10 Average Capacity 9 | 6 9 10 Most Carried 10 | 2 10 10 Average Carried 8 | 1 8 9 Final Capacity 10 | 8 10 10 Final Carried 10 | 2 10 8 Class Distribution -------------------- 100% | Mutant Dominant Class ---------------- Mutant | -10/Materials Mutant | -10/Subcaves Resources | -11 -10 -10 ----------- Run | Yrd Mat Sub Matter Collected 813 | 216 361 236 Remotely . | . . . Salvage Created 834 | . 656 178 Parts 74 | . 63 11 Haulers Intercepted 1 | . 1 . Recyclers Shooed . | . . . Parts Field Recycled . | . . . Retrieved Matter . | . . . Parts Self-Destructed 23 | . . 23 Prevented . | . . . Kills | -11 -10 -10 ------- Run | Yrd Mat Sub Combat Hostiles Destroyed 27 | . 19 8 Guns 7 | . 3 4 Cannons 16 | . 14 2 AOE 2 | . . 2 Classes Destroyed 8 | . 6 2 Worker 2 | . 2 . Hauler 1 | . 1 . Operator 3 | . 3 . Watcher 1 | . 1 . Swarmer 11 | . 9 2 Grunt 12 | . 10 2 Sentry 1 | . . 1 Subdweller 3 | . . 3 Best Kill Streak 9 | . 9 2 Combat Bots Only 7 | . 7 2 Max Kills in Single Turn 1 | . 1 1 Gunslinging . | . . . Exploded 1 | . . 1 Melee . | . . . Uniques/NPCs Destroyed . | . . . Combat | -11 -10 -10 -------- Run | Yrd Mat Sub Hostile Shots Fired 150 | . 90 60 Missed 50 | . 29 21 Damage Taken 1083 | . 560 523 Core 257 | . 131 126 Absorbed by Shields . | . . . Regen/Repaired (Parts) 93 | . 93 . Core Remaining (%) 100 | 100 . . Volleys Fired 88 | . 56 32 Largest 2 | . 2 2 Hottest 110 | . 80 110 Shots Fired 175 | . 112 63 Gun 80 | . 56 24 Cannon 85 | . 56 29 Launcher 10 | . . 10 Special . | . . . Kinetic 56 | . 56 . Thermal 109 | . 56 53 Explosive 10 | . . 10 Electromagnetic . | . . . Robot Hit Streak 11 | . 9 11 Robot Miss Streak 4 | . 3 4 Penetration Max . | . . . Secondary Targets . | . . . Shots Hit Robots 99 | . 59 40 Core Hits 46 | . 32 14 Critical Kills 3 | . 3 . Critical Parts Destroyed . | . . . Critical Strikes 5 | . 3 2 Burn 2 | . . 2 Meltdown 2 | . 2 . Destroy 1 | . 1 . Melee Attacks 8 | . . 8 Impact 8 | . . 8 Slashing . | . . . Piercing . | . . . Sneak Attacks . | . . . Combat Hostiles . | . . . Follow-up Attacks . | . . . Damage Inflicted 1878 | . 870 1008 Guns 439 | . 210 229 Cannons 897 | . 654 243 Explosions 536 | . . 536 Melee . | . . . Ramming 6 | . 6 . Kinetic 210 | . 210 . Thermal 1126 | . 654 472 Explosive 536 | . . 536 Electromagnetic . | . . . Impact . | . . . Slashing . | . . . Piercing . | . . . Highest Corruption . | . . . Average Corruption . | . . . Corruption Purged . | . . . Corruption Blocked . | . . . Overload Shots . | . . . Overflow Damage 8 | . 8 . Projectiles 8 | . 8 . Explosions . | . . . Melee . | . . . Knockbacks 2 | . 2 . Impact 2 | . 2 . Kinetic . | . . . Secondary . | . . . Self-Inflicted Damage . | . . . Shots . | . . . Rammed . | . . . Targets Rammed 3 | . 3 . Kicked 3 | . 3 . Crushed . | . . . Highest Temperature 239 | . 239 28 Average Temperature 64 | . 70 13 Received Heat Transfer 243 | . 117 126 Siege Activations . | . . . Robots Corrupted . | . . . Combat Hostiles . | . . . Parts Fried . | . . . Impact Corruptions . | . . . Robots Melted 2 | . 2 . Combat Hostiles 2 | . 2 . Parts Melted 7 | . 6 1 Heat Transferred 2701 | . 1369 1332 Parts Sabotaged . | . . . Parts Stolen . | . . . Parts Stripped . | . . . Power Chain Reactions . | . . . Alert | -11 -10 -10 ------- Run | Yrd Mat Sub Peak Influence 464 | . 464 . Initial . | . . . Average 256 | . 272 . Maximum Alert Level 2 | . 2 . Low Security (%) 29 | 100 25 . Level 1 52 | . 56 . Level 2 17 | . 18 . Level 3 . | . . . Level 4 . | . . . Level 5 . | . . . High Security . | . . . Max Security . | . . . Squads Dispatched 5 | . 5 . Investigation 2 | . 2 . Extermination . | . . . Reinforcement 3 | . 3 . Assault . | . . . Garrison . | . . . Intercept . | . . . Searches Triggered . | . . . Construction Impeded . | . . . Haulers Reinforced . | . . . Active Scanning Responses . | . . . Cargo Convoy Interrupts . | . . . Stealth | -11 -10 -10 --------- Run | Yrd Mat Sub Distress Signals 8 | . 8 . Communications Jammed . | . . . Distress Signals . | . . . Times Spotted 47 | . 38 9 Peak Tracking Total 8 | . 8 2 Tactical Retreats 6 | . 4 2 Traps | -11 -10 -10 ------- Run | Yrd Mat Sub Traps Triggered 4 | . 3 1 Indirectly . | . . . Trap Hack Attempts . | . . . Triggered . | . . . Disarmed . | . . . Reprogrammed . | . . . Reused . | . . . Traps Extracted . | . . . Installed . | . . . Triggered . | . . . Machines | -11 -10 -10 ---------- Run | Yrd Mat Sub Machines Disabled 1 | . . 1 Max in Single Turn 1 | . . 1 Machines Repaired . | . . . Machines Dismantled . | . . . Machines Sabotaged . | . . . Overloaded Fab Kills . | . . . Hacking | -11 -10 -10 --------- Run | Yrd Mat Sub Machines Accessed 8 | . 7 1 Terminals 5 | . 5 . Fabricators . | . . . Repair Stations 1 | . 1 . Recycling Units 1 | . 1 . Scanalyzers . | . . . Garrison Access . | . . . Total Hacks 25 | . 24 1 Successful 14 | . 13 1 Failed 10 | . 10 . Catastrophic . | . . . Database Lockouts 1 | . 1 . Manual 21 | . 21 . Terminals 20 | . 20 . Fabricators . | . . . Repair Stations 2 | . 2 . Recycling Units 2 | . 2 . Scanalyzers . | . . . Garrison Access . | . . . Terminal Hacks 5 | . 4 1 Robot Analysis 3 | . 3 . Branch Access Points 1 | . 1 . Derelict Proto ID Bank 1 | . . 1 Fabricator Hacks . | . . . Repair Station Hacks 2 | . 2 . Scan Component 1 | . 1 . Repair 1 | . 1 . Recycling Unit Hacks 1 | . 1 . Retrieve Components 1 | . 1 . Scanalyzer . | . . . Garrison Access Hacks . | . . . Unauthorized Hacks 6 | . 6 . Terminals 6 | . 6 . Botnet 2 | . 2 . Skim 4 | . 4 . Fabricators . | . . . Repair Stations . | . . . Recycling Units . | . . . Scanalyzers . | . . . Garrison Access . | . . . Data Cores Recovered . | . . . Used . | . . . Hacking Detections 5 | . 5 . Full Trace Events 2 | . 2 . Feedback Events . | . . . Feedback Blocked . | . . . Robot Schematics Acquired . | . . . Robots Built . | . . . Authchips . | . . . Time . | . . . Total Robot Build Rating . | . . . Part Schematics Acquired . | . . . Parts Built . | . . . Authchips . | . . . Time . | . . . Total Part Build Rating . | . . . Parts Repaired 1 | . 1 . Time 26 | . 26 . Parts Recycled . | . . . Recycled Matter . | . . . Retrieved Matter . | . . . Retrieved Components 2 | . 2 . Parts Scanalyzed . | . . . Part Schematics Acquired . | . . . Parts Damaged . | . . . Bothacking | -11 -10 -10 ------------ Run | Yrd Mat Sub Used RIF Installer . | . . . Robots Hacked . | . . . Non-combat . | . . . Combat . | . . . Robot Hacks Applied . | . . . Relay Couplers Released . | . . . Fabnet Peak Effective % . | . . . Robots Rewired . | . . . Allies Hacked . | . . . Hacks Repelled . | . . . Allies | -11 -10 -10 -------- Run | Yrd Mat Sub Total Allies . | . . . Largest Group . | . . . Highest-Rated Group . | . . . Highest-Rated Ally . | . . . Total Orders . | . . . Ally Attacks . | . . . Total Damage . | . . . Kills . | . . . Allies Corrupted . | . . . Allies Melted . | . . . Intel | -11 -10 -10 ------- Run | Yrd Mat Sub Robot Analysis Total 3 | . 3 . Derelict Logs Recovered 1 | . . 1 Drone Launches . | . . . Drone Recoveries . | . . . Exploration | -11 -10 -10 ------------- Run | Yrd Mat Sub Turns Passed 2741 | 73 1164 1504 Spaces Moved 1529 | 52 744 733 Core 10 | 10 . . Treads . | . . . Legs 1519 | 42 744 733 Wheels . | . . . Hover . | . . . Flight . | . . . Fastest Speed 50 | 50 120 120 Average Speed 151 | 120 120 185 Slowest Speed 260 | 190 190 260 Overloaded Moves . | . . . Propulsion Burnouts . | . . . Robots Hopped . | . . . Cave-ins Triggered . | . . . Exploration Rate (%) 51 | 4 99 52 Regions Visited 2 Branch Regions 1 Pre-discovered Areas 1 | . . 1 Known Exits Taken . | . . . Unknown Exits Taken 2 | 1 1 . Scrap Searched 2 | . . 2 Spaces Dug . | . . . Terrain Destroyed 50 | . . 50 Melee . | . . . Projectile . | . . . AOE 50 | . . 50 Terrain Rammed . | . . . Walls Destroyed . | . . . Machines Disabled . | . . . Actions | -11 -10 -10 --------- Run | Yrd Mat Sub Total 1768 | 59 909 800 Wait 86 | . 74 12 Move 1527 | 51 743 733 Hop . | . . . Pick Up 19 | 2 15 2 Fast Attach 11 | 6 5 . Attach 5 | . 3 2 Detach 1 | . 1 . Swap 11 | . 2 9 Drop 9 | . 7 2 Fire 88 | . 56 32 Melee 8 | . . 8 Ram . | . . . Kick 3 | . 3 . Crush . | . . . Escape Stasis . | . . . Rewire . | . . . Trap . | . . . Miscellaneous . | . . . Route ------- -11/Scrapyard -10/Materials (discovered 6 exits: [*Mat x3] / *Min x2 / *Sub) -10/Subcaves History --------- Turn | Location | Event 4 | -11/Scrapyard | Discovered new exit (range 15) 74 | -11/Scrapyard | Entered Materials 199 | -10/Materials | Discovered new exit (range 14) 316 | -10/Materials | Build established: Mutant 316 | -10/Materials | Discovered new exit (range 13) 421 | -10/Materials | Destroyed 7 combat bots 673 | -10/Materials | Core integrity fell below 50% 790 | -10/Materials | Discovered new exit (range 6) 860 | -10/Materials | Discovered new exit (range 15) 996 | -10/Materials | Identified exit to Mines 996 | -10/Materials | Central database locked down 1109 | -10/Materials | Repaired Beam Cannon 1150 | -10/Materials | Discovered new exit (range 3) 1231 | -10/Materials | Discovered new exit (range 6) 1238 | -10/Materials | Entered Subcaves 1243 | -10/Subcaves | Learned Materials emergency access door positions 1318 | -10/Subcaves | Visited 4L-MR0's lab 2130 | -10/Subcaves | Learned location of Zion (-7) 2130 | -10/Subcaves | Met a Zionite searching for "candidates" 2416 | -10/Subcaves | Core integrity fell below 20% 2742 | -10/Subcaves | Destroyed by Piercing Trap Last Messages --------------- 02432_ S-10 Pest destroyed. 02433_ Subatomizers dissect the Flight Unit. 02435_ S-10 Pest destroyed. 02437_ Lgt. Ion Engine fries itself beyond repair. 02440_ Lgt. Assault Rifle fries itself beyond repair. 02447_ Flight Unit fries itself beyond repair. 02452_ Acquired 10 matter. 02741_ Searching scrap... 02741_ Found Battle Cannon. 02741_ Found Riot Gun. 02741_ Found 59 Matter. 02742_ Acquired 10 matter. 02742_ Searching scrap... 02742_ Found Piercing Trap. 02742_ Found 34 Matter. 02742_ Triggered Piercing Trap. 02742_ Spikes shoot up from the floor. 02742_ Critical hit (Impale). Map ----- +----------------------------------------------------+ | | | | | | | | | | | | | | | | | | | | | | | | | | | | | | | ?????????????????????????????????????????????????? | | ?????????????????????????????????????????????????? | | ??????????????????##########?????????????????????? | | ??????????????????###########????????????????????? | | ?????????????????###" " ###????????????????????? | | ?????????????????###"" " $##????????????????????? | | ????????????????? # ???????????????????????? | | ????????????##"" ?? # # "???????????????????????? | | ???????????###### ###$ ##?????????????????????? | | ???????????### #### ]#####????????????????????? | | ???????????## %@###????????????????????? | | ???????????##$ ##### [& <##????????????????????? | | ???????????### # ##????????????????????? | | ????????????##" ## <####???????????????????? | | ????????????##### ## <<######??????????????????? | | ???????????###### "###### ###??????????????????? | | ??????????##### < ### ##??????????????????? | | ??????####### ##??????????????????? | | ????######## ### ###??????????????####? | | ????#### # ## ??????????????##### | | ????## "??????? ?## ## | | ????### ## ????? ## " | | ????### ### ### # ## ???? ## "" | | ????## ###################### ???## """" | | ????### #####################??#####???## """ | | ????## ##?????????????????????#####???## "" | | ?##### ###?????????????????????????????## "" | | ####### ###?????????????????????????????## "" | | ### ## ##?????????????????????????????## "" | | ## # ###????????????????????????????### "" | | # ####???????????????????????????#### "" | | ###????????????????????????????####"" | | ###????????????????????????????####" | | ### ###?????????????????????????????###""" | | ### ##????????????????????????????##""""" | +----------------------------------------------------+ Best States ------------- Heat Dissipation 25 Energy Generation 14 Energy Capacity 250 Matter Stores 300 Matter Capacity 300 Sight Range 16 Terrain Scan Density 10 Evasion (%) 55 Item Schematics ----------------- None Robot Schematics ------------------ None Fabricated ------------ Nothing Alien Tech Used ----------------- None Achievements -------------- None Challenges ------------ None Game ------ Seed ReinforcedSniperSystem Manual? 0 Play Time 00:21:44 Cumulative 24.1 hours Start 2024.08.17 @ 03:15:41 End 2024.08.17 @ 03:31:34 Sessions 1 Manual Loads 0 Difficulty Rogue Special Mode None Game No. 44 Rogue 44 Adventurer 0 Explorer 0 Win Type - Total 0 Types 0/0/0/0/0/0/0/0/0 Lore% 30 Gallery% 25 Achievement% 23 Wizard Run 0 Options --------- Layout 2 ASCII 0 Keyboard 1 Movement Arrows Keybinds 0 Fullscreen 2 Font 32/SmallcapsGlow Map View 50x44 Zoom Use 0% Tactical HUD 1 Map Filters NONE Filters NONE Steam 1 RUN: 80b0a122-0a60-423e-a5e8-485671add26a